[Event "URU-ch Semi Final 2020"]
[Site "Montevideo"]
[Date "2020.02.22"]
[Round "2.17"]
[White "Davila Texeira, Mario"]
[Black "Lanaro, Emilio"]
[Result "1-0"]
[ECO "B20"]
[WhiteElo "1819"]
[BlackElo "1670"]
[Annotator "NA"]
[PlyCount "233"]
[EventDate "2020.02.22"]
[EventType "swiss"]
[EventCountry "URU"]
[SourceTitle "playchess.com"]
[Source "ChessBase"]
[SourceQuality "1"]
[TimeControl "5400+30"]

1. e4 {[%emt 0:00:00]} c5 {[%emt 0:00:00]} 2. d3 {[%emt 0:00:00]} g6 {[%emt 0:04:52]} 3. g3 {[%emt 0:00:07]} Bg7 {[%emt 0:00:11]} 4. Bg2 {[%emt 0:00:09]} Nc6 {[%emt 0:01:03]} 5. c3 {[%emt 0:01:45]} e6 {[%emt 0:16:27]} 6. f4 {[%emt 0:00:36]} Nge7 {[%emt 0:06:47]} 7. Nf3 {[%emt 0:03:28]} d6 {[%emt 0:03:13]} 8. O-O {[%emt 0:00:24]} O-O {[%emt 0:00:20]} 9. Be3 {[%emt 0:10:04]} Bd7 {[%emt 0:04:35]} 10. Nbd2 {[%emt 0:03:28]} Qc7 {[%emt 0:06:13]} 11. g4 {[%emt 0:07:50]} Rab8 {[%emt 0:02:51]} 12. Qe1 {[%emt 0:04:39]} b5 {[%emt 0:10:45]} 13. Rb1 {[%emt 0:12:05]} b4 {[%emt 0:04:39]} 14. d4 {[%emt 0:05:16]} bxc3 {[%emt 0:08:36]} 15. bxc3 {[%emt 0:00:05]} Rxb1 {[%emt 0:00:21]} 16. Nxb1 {[%emt 0:00:18]} cxd4 {[%emt 0:09:24]} 17. cxd4 {[%emt 0:00:02]} Rb8 {[%emt 0:05:37]} 18. Qf2 {[%emt 0:02:17]} Nb4 {[%emt 0:02:08]} 19. Rc1 {[%emt 0:00:55]} Qa5 {[%emt 0:00:29]} 20. Bd2 {[%emt 0:01:17]} Qxa2 {[%emt 0:01:22]} 21. Nc3 {[%emt 0:02:42]} Qa6 {[%emt 0:04:18]} 22. Bf1 {[%emt 0:00:07]} Qb7 {[%emt 0:00:04]} 23. Qe3 {[%emt 0:04:31]} Bc6 {[%emt 0:01:49]} 24. Kf2 {[%emt 0:03:41]} f5 {[%emt 0:02:04]} 25. gxf5 {[%emt 0:04:42]} exf5 {[%emt 0:00:13]} 26. e5 {[%emt 0:00:37]} Ned5 {[%emt 0:01:06]} 27. Nxd5 {[%emt 0:00:39]} Nxd5 {[%emt 0:00:02]} 28. Qa3 {[%emt 0:01:22]} Nxf4 {[%emt 0:01:48]} 29. Bxf4 {[%emt 0:00:53]} Be4 {[%emt 0:00:36]} 30. Nd2 {[%emt 0:01:10]} dxe5 {[%emt 0:01:30]} 31. dxe5 {[%emt 0:00:10]} Bf8 {[%emt 0:00:41]} 32. Qa2+ {[%emt 0:00:32]} Kh8 {[%emt 0:01:03]} 33. e6 {[%emt 0:02:34]} Bg7 {[%emt 0:00:22]} 34. Bxb8 {[%emt 0:01:06]} Qxb8 {[%emt 0:00:36]} 35. Qb3 {[%emt 0:01:50]} Qxh2+ {[%emt 0:00:45]} 36. Ke1 {[%emt 0:00:19]} Bd4 {[%emt 0:00:37]} 37. Nxe4 {[%emt 0:02:15]} fxe4 {[%emt 0:00:07]} 38. Rc8+ {[%emt 0:03:22]} Kg7 {[%emt 0:00:06]} 39. Qc2 {[%emt 0:01:42]} Qh4+ {[%emt 0:00:12]} 40. Kd1 {[%emt 0:00:07]} Qg4+ {[%emt 0:00:15]} 41. Qe2 {[%emt 0:00:33]} Qxe6 {[%emt 0:00:08]} 42. Rc7+ {[%emt 0:00:21]} Kh8 {[%emt 0:00:32]} 43. Qc4 {[%emt 0:00:33]} Qxc4 {[%emt 0:01:08]} 44. Rxc4 {[%emt 0:00:04]} Bb6 {[%emt 0:00:07]} 45. Rxe4 {[%emt 0:00:07]} Kg7 {[%emt 0:00:19]} 46. Bd3 {[%emt 0:00:43]} Kf6 {[%emt 0:01:05]} 47. Ke2 {[%emt 0:00:10]} Kg7 {[%emt 0:01:33]} 48. Kf3 {[%emt 0:00:11]} Kf6 {[%emt 0:00:12]} 49. Rf4+ {[%emt 0:00:36]} Kg7 {[%emt 0:00:17]} 50. Kg4 {[%emt 0:00:42]} h5+ {[%emt 0:00:34]} 51. Kh3 {[%emt 0:00:06]} g5 {[%emt 0:00:21]} 52. Rf5 {[%emt 0:01:18]} Be3 {[%emt 0:00:19]} 53. Re5 {[%emt 0:00:24]} Bf4 {[%emt 0:00:18]} 54. Re7+ {[%emt 0:00:02]} Kf6 {[%emt 0:00:26]} 55. Rxa7 {[%emt 0:00:02]} h4 {[%emt 0:00:11]} 56. Kg4 {[%emt 0:00:20]} Ke5 {[%emt 0:00:22]} 57. Bf5 {[%emt 0:01:08]} Bc1 {[%emt 0:00:26]} 58. Ra5+ {[%emt 0:00:23]} Kf6 {[%emt 0:00:11]} 59. Kf3 {[%emt 0:00:46]} Bd2 {[%emt 0:00:31]} 60. Rd5 {[%emt 0:00:03]} Bf4 {[%emt 0:00:19]} 61. Ke4 {[%emt 0:00:02]} Bc1 {[%emt 0:00:58]} 62. Rc5 {[%emt 0:00:05]} Bf4 {[%emt 0:00:13]} 63. Rc6+ Ke7 64. Bg4 {[%emt 0:01:13]} Kf7 {[%emt 0:00:50]} 65. Ra6 {[%emt 0:00:13]} Ke7 {[%emt 0:00:22]} 66. Kd5 {[%emt 0:01:23]} Bc1 {[%emt 0:01:17]} 67. Re6+ {[%emt 0:00:14]} Kf7 {[%emt 0:00:09]} 68. Ke5 {[%emt 0:00:26]} Kg7 {[%emt 0:01:01]} 69. Kf5 {[%emt 0:00:04]} Bf4 {[%emt 0:00:24]} 70. Re7+ {[%emt 0:01:59]} Kh6 {[%emt 0:01:20]} 71. Kf6 {[%emt 0:00:43]} Bc1 {[%emt 0:00:53]} 72. Bf5 {[%emt 0:00:43]} Bb2+ {[%emt 0:00:24]} 73. Ke6 {[%emt 0:00:01]} g4 {[%emt 0:00:40]} 74. Bxg4 {[%emt 0:00:03]} Kg5 {[%emt 0:00:18]} 75. Bh3 {[%emt 0:00:38]} Kf4 {[%emt 0:00:17]} 76. Rb7 {[%emt 0:00:42]} Bc3 {[%emt 0:00:21]} 77. Rb3 {[%emt 0:00:04]} Be1 {[%emt 0:00:21]} 78. Kd5 {[%emt 0:00:20]} Bf2 {[%emt 0:00:22]} 79. Ke6 {[%emt 0:01:18]} Be1 {[%emt 0:00:41]} 80. Kf6 {[%emt 0:00:09]} Bg3 {[%emt 0:00:43]} 81. Kg6 {[%emt 0:00:04]} Be1 {[%emt 0:00:26]} 82. Kh5 {[%emt 0:00:07]} Bg3 {[%emt 0:00:35]} 83. Bg2 {[%emt 0:00:25]} Ke5 {[%emt 0:00:43]} 84. Kg5 {[%emt 0:00:10]} Bf2 {[%emt 0:00:39]} 85. Rf3 {[%emt 0:00:32]} Bg3 {[%emt 0:00:05]} 86. Re3+ {[%emt 0:00:07]} Kd4 {[%emt 0:00:18]} 87. Re8 {[%emt 0:00:04]} Bf2 {[%emt 0:00:30]} 88. Re4+ {[%emt 0:00:18]} Kd3 {[%emt 0:00:09]} 89. Kg4 {[%emt 0:00:18]} Bg3 {[%emt 0:00:23]} 90. Kf3 {[%emt 0:00:07]} Kd2 {[%emt 0:00:26]} 91. Re3 {[%emt 0:00:37]} Bc7 {[%emt 0:00:36]} 92. Bf1 {[%emt 0:00:41]} Bb8 {[%emt 0:01:31]} 93. Rd3+ {[%emt 0:00:21]} Kc2 {[%emt 0:00:10]} 94. Ke2 {[%emt 0:00:51]} Bc7 {[%emt 0:00:43]} 95. Rd4 {[%emt 0:00:48]} Be5 {[%emt 0:00:26]} 96. Rxh4 {[%emt 0:00:09]} Bf6 {[%emt 0:00:15]} 97. Rc4+ {[%emt 0:00:02]} Kb3 {[%emt 0:00:06]} 98. Kd3 {[%emt 0:00:24]} Be5 {[%emt 0:00:23]} 99. Be2 {[%emt 0:00:02]} Bf6 {[%emt 0:00:15]} 100. Rc6 {[%emt 0:00:12]} Bd8 {[%emt 0:00:26]} 101. Rc8 {[%emt 0:00:05]} Bf6 {[%emt 0:00:07]} 102. Rb8+ {[%emt 0:00:03]} Ka3 {[%emt 0:00:25]} 103. Kc2 {[%emt 0:00:42]} Be5 {[%emt 0:00:06]} 104. Rb7 {[%emt 0:00:23]} Ka4 {[%emt 0:00:28]} 105. Bc4 {[%emt 0:01:30]} Bd4 {[%emt 0:00:36]} 106. Bb3+ {[%emt 0:01:05]} Ka5 {[%emt 0:00:29]} 107. Kd3 Ka6 108. Bd5 {[%emt 0:00:23]} Bc5 {[%emt 0:00:29]} 109. Kc4 {[%emt 0:00:04]} Be3 {[%emt 0:00:51]} 110. Rb3 {[%emt 0:00:57]} Bf2 {[%emt 0:00:42]} 111. Bb7+ {[%emt 0:00:05]} Ka7 {[%emt 0:01:26]} 112. Bc8 {[%emt 0:00:03]} Bg1 {[%emt 0:01:10]} 113. Rb7+ {[%emt 0:00:05]} Ka8 {[%emt 0:00:09]} 114. Kb5 {[%emt 0:00:15]} Bd4 {[%emt 0:00:22]} 115. Ka6 {[%emt 0:00:02]} Be5 {[%emt 0:00:32]} 116. Bh3 {[%emt 0:00:03]} Bf4 {[%emt 0:00:26]} 117. Bg2 {[%emt 0:00:02]} 1-0

[Event "URU-ch Semi Final 2020"]
[Site "Montevideo"]
[Date "2020.02.22"]
[Round "2.18"]
[White "Svarcas, Anibal"]
[Black "De los Reyes, Mauro"]
[Result "1/2-1/2"]
[ECO "C55"]
[WhiteElo "1672"]
[BlackElo "1815"]
[Annotator "NA"]
[PlyCount "69"]
[EventDate "2020.02.22"]
[EventType "swiss"]
[EventCountry "URU"]
[SourceTitle "playchess.com"]
[Source "ChessBase"]
[SourceQuality "1"]
[TimeControl "5400+30"]

1. e4 {[%emt 0:02:44]} e5 {[%emt 0:00:00]} 2. Nf3 {[%emt 0:00:41]} Nc6 {[%emt 0:00:00]} 3. Bc4 {[%emt 0:00:13]} Nf6 {[%emt 0:00:01]} 4. O-O {[%emt 0:00:42]} Be7 {[%emt 0:04:12]} 5. Nc3 {[%emt 0:00:22]} d6 {[%emt 0:00:37]} 6. h3 {[%emt 0:00:43]} O-O 7. d4 {[%emt 0:03:24]} exd4 8. Nxd4 Nxe4 {[%emt 0:13:40]} 9. Nxe4 {[%emt 0:13:42]} d5 {[%emt 0:00:45]} 10. Nb5 {[%emt 0:04:12]} a6 {[%emt 0:02:01]} 11. Nxc7 {[%emt 0:08:10]} Qxc7 {[%emt 0:00:34]} 12. Bxd5 {[%emt 0:00:31]} Rd8 {[%emt 0:02:02]} 13. c4 {[%emt 0:00:13]} Be6 {[%emt 0:03:52]} 14. Nc3 {[%emt 0:00:46]} b5 {[%emt 0:03:41]} 15. Qf3 {[%emt 0:06:59]} Bxd5 {[%emt 0:17:14]} 16. Nxd5 {[%emt 0:00:28]} Qe5 {[%emt 0:02:30]} 17. Bf4 {[%emt 0:06:33]} Qxb2 {[%emt 0:01:53]} 18. Nxe7+ {[%emt 0:07:56]} Nxe7 {[%emt 0:00:16]} 19. c5 {[%emt 0:00:13]} Rac8 {[%emt 0:02:01]} 20. Bd6 {[%emt 0:01:20]} Nc6 21. Rfb1 Qd4 {[%emt 0:01:48]} 22. Rd1 {[%emt 0:03:25]} Qb2 23. Qf4 h6 {[%emt 0:04:00]} 24. Rdb1 Qc3 25. a4 {[%emt 0:09:38]} Nd4 {[%emt 0:01:32]} 26. Qg4 {[%emt 0:00:14]} Nc6 {[%emt 0:06:29]} 27. axb5 {[%emt 0:00:48]} axb5 {[%emt 0:01:22]} 28. Rc1 {[%emt 0:01:13]} Qd4 {[%emt 0:00:30]} 29. Qf3 Ne5 {[%emt 0:07:33]} 30. Qb7 {[%emt 0:02:37]} Nd3 {[%emt 0:01:07]} 31. Rf1 {[%emt 0:08:22]} Nxc5 {[%emt 0:00:38]} 32. Bxc5 {[%emt 0:00:23]} Qxc5 {[%emt 0:00:26]} 33. Ra7 {[%emt 0:00:13]} Qd5 34. Rb1 {[%emt 0:04:07]} Rb8 {[%emt 0:03:01]} 35. Qe7 1/2-1/2

[Event "URU-ch Semi Final 2020"]
[Site "Montevideo"]
[Date "2020.02.22"]
[Round "2.19"]
[White "Belbey, Juan"]
[Black "Larrea, Daniela"]
[Result "0-1"]
[ECO "D00"]
[WhiteElo "1611"]
[BlackElo "1757"]
[Annotator "NA"]
[PlyCount "80"]
[EventDate "2020.02.22"]
[EventType "swiss"]
[EventCountry "URU"]
[SourceTitle "playchess.com"]
[Source "ChessBase"]
[SourceQuality "1"]
[TimeControl "5400+30"]

1. d4 {[%emt 0:00:00]} d5 {[%emt 0:02:51]} 2. e3 {[%emt 0:00:01]} e6 {[%emt 0:00:07]} 3. Bd3 {[%emt 0:00:16]} f5 {[%emt 0:00:08]} 4. c3 {[%emt 0:00:31]} Nf6 {[%emt 0:00:09]} 5. Nf3 {[%emt 0:00:15]} Bd6 {[%emt 0:00:10]} 6. Nbd2 {[%emt 0:00:18]} O-O {[%emt 0:00:11]} 7. b3 {[%emt 0:00:21]} Nbd7 {[%emt 0:00:29]} 8. Bb2 {[%emt 0:00:12]} Ne4 {[%emt 0:00:35]} 9. Qc2 {[%emt 0:00:14]} Ndf6 {[%emt 0:00:59]} 10. Rf1 {[%emt 0:01:40]} Qe8 {[%emt 0:10:18]} 11. Ne5 {[%emt 0:01:12]} Nxd2 {[%emt 0:05:06]} 12. Qxd2 {[%emt 0:00:42]} Bxe5 {[%emt 0:01:29]} 13. dxe5 {[%emt 0:00:09]} Ng4 {[%emt 0:00:18]} 14. f4 {[%emt 0:02:00]} Nxh2 {[%emt 0:03:00]} 15. Rh1 {[%emt 0:00:10]} Ng4 {[%emt 0:00:08]} 16. O-O-O {[%emt 0:00:30]} a5 {[%emt 0:11:45]} 17. Rh4 {[%emt 0:00:26]} a4 {[%emt 0:00:30]} 18. b4 {[%emt 0:00:53]} Bd7 {[%emt 0:04:26]} 19. Rdh1 {[%emt 0:00:27]} Nh6 {[%emt 0:00:17]} 20. g4 {[%emt 0:00:56]} Bb5 {[%emt 0:14:24]} 21. gxf5 {[%emt 0:01:02]} Bxd3 {[%emt 0:04:52]} 22. f6 {[%emt 0:00:14]} Bg6 {[%emt 0:02:32]} 23. fxg7 {[%emt 0:00:08]} Rf7 {[%emt 0:05:04]} 24. Rxh6 {[%emt 0:00:12]} Rxg7 {[%emt 0:00:11]} 25. f5 {[%emt 0:01:01]} Bxf5 {[%emt 0:03:25]} 26. Rf6 {[%emt 0:00:19]} a3 {[%emt 0:07:50]} 27. Ba1 {[%emt 0:00:20]} Qb5 {[%emt 0:08:04]} 28. Rxf5 {[%emt 0:02:20]} exf5 {[%emt 0:00:33]} 29. Qf2 {[%emt 0:01:43]} Qd3 {[%emt 0:06:01]} 30. Rh4 {[%emt 0:02:04]} Rg4 {[%emt 0:03:45]} 31. Rxg4+ {[%emt 0:00:51]} fxg4 {[%emt 0:00:01]} 32. Qf4 {[%emt 0:00:46]} Qg6 {[%emt 0:01:05]} 33. c4 {[%emt 0:00:55]} Rf8 {[%emt 0:01:18]} 34. Qd4 {[%emt 0:00:28]} Rf1+ {[%emt 0:00:54]} 35. Kd2 {[%emt 0:00:20]} Rxa1 {[%emt 0:00:38]} 36. Qxa1 {[%emt 0:00:13]} dxc4 {[%emt 0:00:05]} 37. Qd4 {[%emt 0:00:18]} Qd3+ {[%emt 0:01:45]} 38. Qxd3 {[%emt 0:00:08]} cxd3 {[%emt 0:00:03]} 39. Kxd3 {[%emt 0:00:04]} Kf7 {[%emt 0:00:10]} 40. Ke4 {[%emt 0:00:10]} Ke6 {[%emt 0:00:31]} 0-1

[Event "URU-ch Semi Final 2020"]
[Site "Montevideo"]
[Date "2020.02.22"]
[Round "2.20"]
[White "Ramirez Dominguez, Agustin"]
[Black "Bon, Charles"]
[Result "1-0"]
[ECO "B90"]
[WhiteElo "1894"]
[BlackElo "1614"]
[Annotator "NA"]
[PlyCount "121"]
[EventDate "2020.02.22"]
[EventType "swiss"]
[EventCountry "URU"]
[SourceTitle "playchess.com"]
[Source "ChessBase"]
[SourceQuality "1"]
[TimeControl "5400+30"]

1. e4 {[%emt 0:00:00]} c5 {[%emt 0:00:00]} 2. Nf3 {[%emt 0:00:00]} d6 {[%emt 0:00:00]} 3. d4 {[%emt 0:00:00]} cxd4 {[%emt 0:00:02]} 4. Nxd4 {[%emt 0:00:00]} Nf6 {[%emt 0:00:13]} 5. Nc3 {[%emt 0:00:06]} a6 {[%emt 0:00:21]} 6. Be3 {[%emt 0:00:23]} e5 {[%emt 0:01:13]} 7. Nb3 {[%emt 0:00:14]} Be6 {[%emt 0:01:16]} 8. f3 {[%emt 0:01:03]} Be7 {[%emt 0:00:10]} 9. Be2 {[%emt 0:00:24]} O-O {[%emt 0:00:37]} 10. O-O {[%emt 0:00:29]} Nbd7 {[%emt 0:01:48]} 11. Qe1 {[%emt 0:05:20]} Nb6 {[%emt 0:02:17]} 12. Qf2 {[%emt 0:00:55]} Nc4 {[%emt 0:03:36]} 13. Bxc4 {[%emt 0:00:31]} Bxc4 {[%emt 0:00:07]} 14. Rfd1 {[%emt 0:01:33]} Qc8 {[%emt 0:07:17]} 15. Na4 {[%emt 0:09:58]} Nd7 {[%emt 0:03:01]} 16. Nd2 {[%emt 0:07:21]} Be6 {[%emt 0:02:57]} 17. c4 $15 {[%emt 0:00:29]} (17. Nc3 $11) 17... b5 {[%emt 0:02:46]} 18. cxb5 {[%emt 0:02:51]} axb5 {[%emt 0:00:29]} 19. Nc3 {[%emt 0:00:56]} Qb7 {[%emt 0:02:50]} 20. Nb3 {[%emt 0:09:02]} Nf6 {[%emt 0:08:03]} 21. Bg5 {[%emt 0:05:38]} Rfd8 {[%emt 0:14:20]} 22. Bxf6 {[%emt 0:00:29]} Bxf6 {[%emt 0:00:06]} 23. Nd5 {[%emt 0:00:10]} Bxd5 {[%emt 0:00:47]} 24. Rxd5 {[%emt 0:00:24]} Be7 {[%emt 0:07:11]} 25. a3 {[%emt 0:02:24]} Rdc8 {[%emt 0:01:05]} 26. Qd2 {[%emt 0:01:54]} Qb6+ {[%emt 0:01:17]} 27. Kh1 {[%emt 0:01:35]} Rc4 28. Rc1 {[%emt 0:01:26]} Rac8 {[%emt 0:03:21]} 29. g3 {[%emt 0:02:20]} Qc6 {[%emt 0:06:01]} 30. Rxc4 {[%emt 0:01:41]} Qxc4 {[%emt 0:00:46]} 31. Qd3 {[%emt 0:00:42]} Qxd3 {[%emt 0:04:37]} 32. Rxd3 {[%emt 0:00:02]} Rc2 {[%emt 0:00:28]} 33. Rd2 {[%emt 0:00:28]} Rxd2 {[%emt 0:00:26]} 34. Nxd2 {[%emt 0:00:02]} g6 {[%emt 0:02:05]} 35. Kg2 {[%emt 0:00:37]} f5 {[%emt 0:00:12]} 36. Kf2 {[%emt 0:00:24]} Kf7 {[%emt 0:00:06]} 37. Nb1 {[%emt 0:01:09]} Bd8 {[%emt 0:02:48]} 38. Nc3 {[%emt 0:01:04]} Bb6+ {[%emt 0:02:40]} 39. Ke2 {[%emt 0:00:07]} b4 {[%emt 0:00:30]} 40. axb4 {[%emt 0:00:41]} Ke6 {[%emt 0:00:20]} 41. Kd3 {[%emt 0:01:00]} Bg1 {[%emt 0:01:43]} 42. h3 {[%emt 0:00:02]} Bf2 {[%emt 0:00:36]} 43. b5 {[%emt 0:09:20]} Kd7 {[%emt 0:02:41]} 44. Ne2 {[%emt 0:00:21]} h5 {[%emt 0:01:50]} 45. Kc4 {[%emt 0:00:26]} fxe4 {[%emt 0:01:30]} 46. fxe4 {[%emt 0:00:18]} g5 {[%emt 0:02:53]} 47. g4 {[%emt 0:00:15]} h4 {[%emt 0:00:39]} 48. Nc3 {[%emt 0:00:23]} Bd4 {[%emt 0:01:04]} 49. Kd5 {[%emt 0:00:40]} Be3 {[%emt 0:00:35]} 50. Na4 {[%emt 0:00:16]} Kc7 {[%emt 0:01:42]} 51. b6+ {[%emt 0:00:23]} Kd7 {[%emt 0:01:02]} 52. b4 {[%emt 0:01:46]} Bd4 {[%emt 0:00:57]} 53. b7 {[%emt 0:00:48]} Kc7 {[%emt 0:00:52]} 54. b8=Q+ {[%emt 0:00:25]} Kxb8 {[%emt 0:00:02]} 55. Kxd6 {[%emt 0:00:17]} Kb7 {[%emt 0:01:22]} 56. Nc5+ {[%emt 0:00:10]} Kb6 {[%emt 0:01:05]} 57. Nd7+ {[%emt 0:00:08]} Kb5 {[%emt 0:00:24]} 58. Nxe5 {[%emt 0:00:08]} Bc3 {[%emt 0:01:52]} 59. Nc6 {[%emt 0:00:18]} Kc4 {[%emt 0:00:57]} 60. e5 {[%emt 0:00:29]} Kd3 {[%emt 0:01:19]} 61. e6 {[%emt 0:00:31]} 1-0

[Event "URU-ch Semi Final 2020"]
[Site "Montevideo"]
[Date "2020.02.22"]
[Round "2.21"]
[White "Cayetano, Juan"]
[Black "Manteiga, Franco"]
[Result "0-1"]
[ECO "B30"]
[WhiteElo "1543"]
[BlackElo "1703"]
[Annotator "NA"]
[PlyCount "54"]
[EventDate "2020.02.22"]
[EventType "swiss"]
[EventCountry "URU"]
[SourceTitle "playchess.com"]
[Source "ChessBase"]
[SourceQuality "1"]
[TimeControl "5400+30"]

1. e4 {[%emt 0:00:04]} c5 {[%emt 0:00:00]} 2. Nf3 {[%emt 0:00:16]} Nc6 {[%emt 0:00:00]} 3. Bc4 {[%emt 0:00:09]} e6 {[%emt 0:00:00]} 4. c3 {[%emt 0:00:08]} d5 {[%emt 0:00:00]} 5. exd5 {[%emt 0:00:19]} exd5 {[%emt 0:00:28]} 6. Bb3 {[%emt 0:00:24]} Nf6 {[%emt 0:00:40]} 7. d4 {[%emt 0:00:09]} c4 {[%emt 0:00:33]} 8. Ba4 {[%emt 0:01:27]} Bd6 {[%emt 0:06:16]} 9. Qe2+ {[%emt 0:00:41]} Be6 {[%emt 0:07:16]} 10. Ne5 {[%emt 0:04:40]} Qc7 {[%emt 0:11:52]} 11. O-O {[%emt 0:03:33]} O-O {[%emt 0:07:53]} 12. Nxc6 {[%emt 0:07:50]} bxc6 {[%emt 0:00:13]} 13. h3 {[%emt 0:00:17]} Bf5 {[%emt 0:08:39]} 14. Bc2 {[%emt 0:02:09]} Rae8 {[%emt 0:01:11]} 15. Qd1 {[%emt 0:00:58]} Ne4 {[%emt 0:06:34]} 16. Nd2 {[%emt 0:01:41]} Bg6 {[%emt 0:05:36]} 17. Bxe4 {[%emt 0:01:13]} Bxe4 {[%emt 0:00:12]} 18. Nxe4 {[%emt 0:00:51]} Rxe4 {[%emt 0:00:07]} 19. b4 {[%emt 0:00:43]} Rfe8 {[%emt 0:01:33]} 20. Be3 {[%emt 0:00:44]} R8e6 {[%emt 0:08:11]} 21. Qd2 {[%emt 0:01:58]} f5 {[%emt 0:01:33]} 22. Qc2 {[%emt 0:01:23]} f4 {[%emt 0:01:51]} 23. Bd2 {[%emt 0:00:34]} f3 {[%emt 0:09:00]} 24. Rfe1 {[%emt 0:02:18]} Qf7 {[%emt 0:01:45]} 25. Re3 {[%emt 0:04:10]} Qg6 {[%emt 0:02:11]} 26. Rxf3 {[%emt 0:01:08]} Re1+ {[%emt 0:00:34]} 27. Rxe1 {[%emt 0:00:09]} Rxe1+ {[%emt 0:00:04]} 0-1

[Event "URU-ch Semi Final 2020"]
[Site "Montevideo"]
[Date "2020.02.22"]
[Round "2.22"]
[White "Osinaga, Eduardo"]
[Black "Amaral, Francisco"]
[Result "1/2-1/2"]
[ECO "B90"]
[WhiteElo "1697"]
[BlackElo "1567"]
[Annotator "NA"]
[PlyCount "104"]
[EventDate "2020.02.22"]
[EventType "swiss"]
[EventCountry "URU"]
[SourceTitle "playchess.com"]
[Source "ChessBase"]
[SourceQuality "1"]
[TimeControl "5400+30"]

1. e4 {[%emt 0:00:04]} c5 {[%emt 0:00:00]} 2. Nf3 {[%emt 0:00:00]} d6 {[%emt 0:00:11]} 3. d4 {[%emt 0:00:00]} cxd4 {[%emt 0:00:16]} 4. Nxd4 {[%emt 0:00:00]} Nf6 {[%emt 0:00:07]} 5. Nc3 {[%emt 0:00:26]} a6 {[%emt 0:00:22]} 6. Bc4 {[%emt 0:02:44]} e6 {[%emt 0:00:24]} 7. a3 {[%emt 0:00:17]} Be7 {[%emt 0:00:30]} 8. O-O {[%emt 0:00:14]} Qc7 {[%emt 0:00:48]} 9. Bb3 {[%emt 0:00:53]} Nbd7 {[%emt 0:00:41]} 10. Be3 {[%emt 0:02:31]} Nc5 {[%emt 0:00:51]} 11. f3 {[%emt 0:00:59]} Nxb3 {[%emt 0:02:48]} 12. cxb3 {[%emt 0:03:50]} b5 {[%emt 0:02:37]} 13. Rc1 {[%emt 0:00:38]} Qb7 {[%emt 0:00:21]} 14. b4 {[%emt 0:00:27]} Bd7 {[%emt 0:00:27]} 15. Nb3 {[%emt 0:03:58]} Rc8 {[%emt 0:01:24]} 16. Na5 {[%emt 0:01:44]} Qb8 {[%emt 0:00:42]} 17. Rf2 {[%emt 0:02:31]} O-O {[%emt 0:00:38]} 18. Rfc2 {[%emt 0:00:47]} e5 {[%emt 0:07:42]} 19. f4 {[%emt 0:08:21]} Ng4 {[%emt 0:05:29]} 20. Qf3 {[%emt 0:03:56]} Nxe3 {[%emt 0:01:40]} 21. Qxe3 {[%emt 0:00:09]} Bd8 {[%emt 0:02:22]} 22. Nd5 {[%emt 0:02:37]} Rxc2 {[%emt 0:01:34]} 23. Rxc2 {[%emt 0:00:13]} Bxa5 {[%emt 0:08:54]} 24. bxa5 {[%emt 0:00:47]} f5 {[%emt 0:08:09]} 25. exf5 {[%emt 0:05:30]} Bxf5 {[%emt 0:01:31]} 26. Ne7+ {[%emt 0:07:01]} Kh8 {[%emt 0:00:17]} 27. Nxf5 {[%emt 0:00:23]} Rxf5 {[%emt 0:00:36]} 28. Qb6 {[%emt 0:00:53]} Qf8 {[%emt 0:00:40]} 29. Qxa6 {[%emt 0:00:17]} Rxf4 {[%emt 0:00:25]} 30. Rc1 {[%emt 0:01:42]} h6 {[%emt 0:04:11]} 31. h3 {[%emt 0:00:13]} Kh7 {[%emt 0:00:30]} 32. Qxb5 {[%emt 0:00:30]} Qf5 {[%emt 0:02:30]} 33. a6 {[%emt 0:01:04]} Qe4 {[%emt 0:00:38]} 34. Qc6 {[%emt 0:04:13]} Qd4+ {[%emt 0:05:29]} 35. Kh1 {[%emt 0:01:01]} Rf2 {[%emt 0:03:34]} 36. b4 {[%emt 0:01:11]} e4 {[%emt 0:00:52]} 37. Qc4 {[%emt 0:02:18]} Qe3 {[%emt 0:04:36]} 38. Rg1 {[%emt 0:10:11]} Rf4 {[%emt 0:05:12]} 39. b5 {[%emt 0:02:39]} Qg3 {[%emt 0:05:46]} 40. a7 {[%emt 0:01:44]} Rh4 {[%emt 0:00:32]} 41. Qe2 {[%emt 0:01:48]} Qxa3 {[%emt 0:00:43]} 42. b6 {[%emt 0:01:09]} d5 {[%emt 0:06:35]} 43. Qf2 {[%emt 0:00:57]} Rxh3+ {[%emt 0:03:58]} 44. gxh3 {[%emt 0:00:14]} Qxh3+ {[%emt 0:00:09]} 45. Qh2 {[%emt 0:00:06]} Qf3+ {[%emt 0:00:06]} 46. Rg2 {[%emt 0:00:43]} Qd1+ {[%emt 0:00:10]} 47. Qg1 {[%emt 0:00:54]} Qh5+ {[%emt 0:00:11]} 48. Rh2 {[%emt 0:00:36]} Qf3+ {[%emt 0:00:07]} 49. Qg2 {[%emt 0:01:36]} Qd1+ {[%emt 0:00:08]} 50. Qg1 {[%emt 0:00:51]} Qf3+ {[%emt 0:00:14]} 51. Rg2 {[%emt 0:00:18]} Qh5+ {[%emt 0:00:08]} 52. Qh2 {[%emt 0:00:07]} Qd1+ {[%emt 0:00:05]} 1/2-1/2